bitfinex/quotes_BTCUSD_20250618
["timestamp","ask_amount","ask_price","bid_price","bid_amount"]
[1750264241075,21.85880089,104560.0,104540.0,0.26970547]
[1750264241310,21.86836358,104560.0,104550.0,0.0331]
[1750264241522,21.87792746,104560.0,104550.0,0.0331]
[1750264241732,21.87792737,104560.0,104550.0,0.0331]
[1750264241961,21.88849125,104560.0,104550.0,0.0331]
[1750264242171,22.07976898,104560.0,104550.0,0.0331]
[1750264242328,22.07876898,104560.0,104550.0,0.0331]
[1750264242543,22.06920592,104560.0,104550.0,0.0662]
[1750264242735,22.07020592,104560.0,104550.0,0.0662]
[1750264243118,0.20086083,104550.0,104530.0,0.0331]
[1750264243313,0.0286954,104540.0,104530.0,0.0662]
[1750264243929,0.00956489,104540.0,104530.0,0.26709907]
[1750264244154,0.01912877,104550.0,104530.0,0.27666542]
[1750264244359,0.02869338,104550.0,104530.0,0.22959785]
[1750264244562,0.03825809,104550.0,104540.0,0.0316]
[1750264244753,0.02869338,104550.0,104540.0,0.0316]
[1750264244954,0.01912877,104550.0,104540.0,0.0638]
[1750264245166,22.24346987,104560.0,104540.0,0.25511432]
[1750264245375,0.00956397,104550.0,104540.0,0.26467994]
[1750264245575,22.41551329,104560.0,104540.0,0.26467994]
[1750264245725,0.00956406,104550.0,104540.0,0.26467994]
[1750264245940,0.00956397,104550.0,104540.0,0.26467994]
[1750264246145,0.01912803,104550.0,104540.0,0.0638]
[1750264246331,0.01912803,104550.0,104540.0,0.26467994]
[1750264246750,0.00956397,104550.0,104540.0,0.21467994]
[1750264246941,0.00956397,104550.0,104540.0,0.20511432]
[1750264247140,0.01912813,104550.0,104540.0,0.0138]
[1750264247341,0.02869238,104550.0,104540.0,0.0138]
[1750264247550,0.01912813,104550.0,104540.0,0.0148]
[1750264247964,0.02869238,104550.0,104540.0,0.0148]
[1750264248178,0.03825681,104550.0,104540.0,0.0148]
[1750264248403,0.04782133,104550.0,104540.0,0.0148]
[1750264248647,0.32570306,104550.0,104540.0,0.001]
[1750264249138,0.39090306,104550.0,104540.0,0.001]
[1750264249386,0.39090361,104550.0,104540.0,0.001]
[1750264250067,0.32570361,104550.0,104540.0,0.001]
[1750264250292,0.12484278,104550.0,104540.0,0.001]
[1750264250756,0.13440758,104550.0,104540.0,0.001]
[1750264250961,0.32570352,104550.0,104540.0,0.001]
[1750264251159,0.37037457,104550.0,104540.0,0.001]
[1750264252224,0.00956589,104530.0,104520.0,0.0658418]
[1750264252450,0.0095658,104530.0,104520.0,0.26676018]
[1750264252663,0.01913169,104530.0,104520.0,0.26676018]
[1750264252881,0.0717446,104530.0,104520.0,0.0002418]
[1750264253299,0.06217816,104530.0,104520.0,0.0002418]
[1750264253514,0.07174534,104530.0,104520.0,0.0022418]
[1750264253988,0.07174534,104530.0,104520.0,0.0002418]
[1750264254436,0.07174525,104530.0,104520.0,0.0002418]
[1750264254841,0.01913197,104530.0,104520.0,0.0002418]
[1750264255048,0.02869823,104530.0,104520.0,0.0636418]
[1750264255551,0.02969823,104530.0,104520.0,0.0636418]
[1750264255786,0.03926458,104530.0,104520.0,0.0636418]
[1750264256206,0.28373168,104530.0,104520.0,0.0002418]
[1750264256416,0.14510293,104530.0,104520.0,0.0002418]
[1750264256620,0.29196956,104530.0,104520.0,0.0002418]
[1750264256827,0.54580219,104530.0,104520.0,0.0002418]
[1750264257030,0.34580219,104530.0,104520.0,0.0002418]
[1750264257443,0.47373593,104530.0,104520.0,0.0002418]
[1750264257653,0.27373593,104530.0,104520.0,0.0002418]
[1750264260791,0.19042493,104530.0,104520.0,0.0002418]
[1750264260975,0.43159137,104530.0,104520.0,0.0002418]
[1750264261217,0.36759137,104530.0,104520.0,0.0002418]
[1750264262258,0.3119087,104530.0,104520.0,0.0002418]
[1750264262706,0.3451087,104530.0,104520.0,0.0002418]
[1750264262956,0.35467533,104530.0,104520.0,0.0002418]
[1750264263162,0.44366524,104530.0,104520.0,0.0002418]
[1750264263387,0.25323178,104530.0,104520.0,0.0002418]
[1750264263619,0.24366561,104530.0,104520.0,0.0002418]
[1750264263841,0.24366561,104530.0,104520.0,0.25279273]
[1750264263842,0.2,104530.0,104520.0,0.25279273]
[1750264264134,0.25885421,104540.0,104530.0,0.0306]
[1750264264357,0.25885421,104540.0,104530.0,0.0612]
[1750264264358,0.05797251,104540.0,104530.0,0.0612]
[1750264264558,4.741028,104540.0,104530.0,0.0612]
[1750264264771,0.03367191,104540.0,104530.0,0.0612]
[1750264265023,0.22410592,104540.0,104530.0,0.0612]
[1750264265235,0.04818979,104540.0,104530.0,0.0612]
[1750264265456,0.24918979,104540.0,104530.0,0.0612]
[1750264265669,0.23005965,104540.0,104530.0,0.30172837]
[1750264265897,0.23005965,104540.0,104530.0,0.31129454]
[1750264266120,0.23005965,104540.0,104530.0,0.30172837]
[1750264266568,0.23005965,104540.0,104530.0,0.31129463]
[1750264266780,0.23005965,104540.0,104530.0,0.30172837]
[1750264267000,0.23005965,104540.0,104530.0,0.27166561]
[1750264267459,0.03005965,104540.0,104530.0,0.29079786]
[1750264267670,0.03005965,104540.0,104530.0,0.27166561]
[1750264268734,0.03005965,104540.0,104530.0,0.26209926]
[1750264268952,0.03005965,104540.0,104530.0,0.28123224]
[1750264269216,0.03005965,104540.0,104530.0,0.0612]
[1750264269217,0.0491897,104540.0,104530.0,0.0612]
[1750264269961,0.05875514,104540.0,104530.0,0.0612]
[1750264270200,0.05875505,104540.0,104530.0,0.0612]
[1750264270420,0.0491897,104540.0,104530.0,0.0612]
[1750264270664,0.05875514,104540.0,104530.0,0.0612]
[1750264270887,0.05875505,104540.0,104530.0,0.0612]
[1750264271131,0.03962454,104540.0,104530.0,0.0612]
[1750264271341,0.04918961,104540.0,104530.0,0.0612]
[1750264271823,0.03005965,104540.0,104530.0,0.26209907]
[1750264272046,0.03005965,104540.0,104530.0,0.28123168]
[1750264272275,0.03005965,104540.0,104530.0,0.27166542]
[1750264272533,0.03005965,104540.0,104530.0,0.28123159]
[1750264272748,0.03005965,104540.0,104530.0,0.30036366]
[1750264273190,0.03005965,104540.0,104530.0,0.29079767]
[1750264273399,0.03005965,104540.0,104530.0,0.30036366]
[1750264273819,0.03005965,104540.0,104530.0,0.28123168]
[1750264274038,0.001,104540.0,104530.0,0.38703943]
[1750264274902,21.84923664,104560.0,104550.0,0.26096064]
[1750264275126,21.84923664,104560.0,104550.0,0.26096083]
[1750264275336,21.84923664,104560.0,104550.0,0.2695762]
[1750264275546,21.85879988,104560.0,104550.0,0.0601]
[1750264275727,21.83967358,104560.0,104550.0,0.27052526]
[1750264275970,21.83967358,104560.0,104550.0,0.28008969]
[1750264276184,21.83967358,104560.0,104550.0,0.27052526]
[1750264276596,21.83967358,104560.0,104550.0,0.25139603]
[1750264276846,21.84923682,104560.0,104550.0,0.0696648]
[1750264277065,21.84923682,104560.0,104550.0,0.0601]
[1750264277272,21.84923682,104560.0,104550.0,0.0696648]
[1750264277732,21.84923673,104560.0,104550.0,0.07922951]
[1750264277944,21.83967358,104560.0,104550.0,0.28009015]
[1750264278174,21.84923673,104560.0,104550.0,0.0601]
[1750264278396,21.96451307,104560.0,104540.0,0.42333879]
[1750264278618,21.85880015,104560.0,104540.0,0.54827687]
[1750264278863,0.00956397,104550.0,104540.0,0.36678608]
[1750264279090,21.87792746,104560.0,104540.0,0.39548175]
[1750264279091,21.86836367,104560.0,104540.0,0.39548175]
[1750264279394,21.87792728,104560.0,104540.0,0.37635152]
[1750264279578,21.87792728,104560.0,104540.0,0.36678608]
[1750264279794,21.88749107,104560.0,104540.0,0.38591687]
[1750264280230,21.87792728,104560.0,104540.0,0.38591687]
[1750264280920,21.87792728,104560.0,104540.0,0.39548166]
[1750264281141,21.87792728,104560.0,104540.0,0.3667859]
[1750264281355,21.96917159,104560.0,104540.0,0.35722046]
[1750264281563,21.85880015,104560.0,104540.0,0.37635097]
[1750264281742,21.86836367,104560.0,104550.0,0.0328]
[1750264281989,21.87792737,104560.0,104550.0,0.0328]
[1750264282196,21.68359298,104560.0,104540.0,0.35992046]
[1750264282403,21.68359298,104560.0,104540.0,0.3694859]
[1750264282834,21.6740291,104560.0,104540.0,0.3694859]
[1750264283046,21.6740291,104560.0,104540.0,0.37905125]
[1750264283275,21.6740291,104560.0,104540.0,0.35992046]
[1750264283478,21.68359289,104560.0,104540.0,0.3694859]
[1750264283656,21.68359289,104560.0,104540.0,0.3886165]
[1750264283657,21.6740291,104560.0,104540.0,0.3886165]
[1750264284035,21.6740291,104560.0,104540.0,0.37905125]
[1750264284247,21.67402901,104560.0,104540.0,0.3886165]
[1750264284721,21.64533846,104560.0,104540.0,0.39818166]
[1750264284866,21.66446522,104560.0,104550.0,0.0318]
[1750264285467,21.63577531,104560.0,104550.0,0.0318]
[1750264285671,21.63577531,104560.0,104550.0,0.26306083]
[1750264285875,21.63577531,104560.0,104550.0,0.27262544]
[1750264286071,21.63577531,104560.0,104550.0,0.29175439]
[1750264286498,21.63577531,104560.0,104550.0,0.30131873]
[1750264287060,21.63577531,104560.0,104550.0,0.30131864]
[1750264287500,21.63577531,104560.0,104550.0,0.463638]
[1750264287914,21.63577531,104560.0,104550.0,0.55987976]
[1750264289202,21.63577531,104560.0,104550.0,0.62865679]
[1750264289403,21.63577531,104560.0,104550.0,0.60391976]
[1750264290493,21.63577531,104560.0,104550.0,0.60491976]
[1750264293402,21.40400897,104560.0,104550.0,0.60491976]
[1750264296441,21.40400897,104560.0,104550.0,0.63366376]
[1750264299985,21.40400897,104560.0,104550.0,0.63358376]
[1750264301911,21.40400897,104560.0,104550.0,0.93052477]
[1750264302164,21.1825115,104560.0,104550.0,0.93052477]
[1750264302922,21.1825115,104560.0,104550.0,1.22812477]
[1750264303126,21.1825115,104560.0,104550.0,0.93118376]
[1750264304486,21.1825115,104560.0,104550.0,0.93018376]
[1750264304908,21.1825115,104560.0,104550.0,0.93318376]
[1750264305329,21.1825115,104560.0,104550.0,0.93718376]
[1750264306491,21.1825115,104560.0,104550.0,0.73090376]
[1750264306686,21.18189639,104560.0,104550.0,0.6909396]
[1750264306899,21.18189639,104560.0,104550.0,0.33279551]
[1750264307111,21.24459639,104560.0,104550.0,0.007]
[1750264307544,21.24459639,104560.0,104550.0,0.20486083]
[1750264307753,21.24459639,104560.0,104550.0,0.1757648]
[1750264307952,21.24459639,104560.0,104550.0,0.02112951]
[1750264308168,21.25415963,104560.0,104550.0,0.20286083]
[1750264308383,21.24459639,104560.0,104550.0,0.38419015]
[1750264308627,21.24459639,104560.0,104550.0,0.22646868]
[1750264308859,21.25415954,104560.0,104550.0,0.1642]
[1750264309772,21.24459639,104560.0,104550.0,0.35649603]
[1750264310015,21.24459639,104560.0,104550.0,0.38518969]
[1750264310241,21.18189639,104560.0,104550.0,0.39475412]
[1750264310482,21.18189639,104560.0,104550.0,0.56366004]
[1750264312197,21.18189639,104560.0,104550.0,0.53136004]
[1750264312412,21.18189639,104560.0,104550.0,0.50056004]
[1750264312846,21.18189639,104560.0,104550.0,0.53136004]
[1750264313061,21.18189639,104560.0,104550.0,0.36916004]
[1750264313268,21.18189639,104560.0,104550.0,0.53136004]
[1750264317162,21.18189639,104560.0,104550.0,0.56246004]
[1750264328117,21.18189639,104560.0,104550.0,0.40026004]
[1750264328330,21.18189639,104560.0,104550.0,0.50052004]
[1750264332302,21.18189639,104560.0,104550.0,0.50048004]
[1750264333979,21.18189639,104560.0,104550.0,0.33836013]
[1750264334194,21.24509639,104560.0,104550.0,0.32879588]
[1750264334405,21.24509639,104560.0,104550.0,0.37554535]
[1750264334617,21.25465945,104560.0,104550.0,0.003]
[1750264335047,21.27876354,104560.0,104550.0,0.003]
[1750264335263,21.38447628,104560.0,104550.0,0.003]
[1750264335482,21.29789085,104560.0,104550.0,0.003]
[1750264335714,21.29789076,104560.0,104550.0,0.003]
[1750264336125,21.30745464,104560.0,104550.0,0.003]
[1750264336330,21.28832706,104560.0,104550.0,0.003]
[1750264336743,21.24509639,104560.0,104550.0,0.22298933]
[1750264336954,21.18189639,104560.0,104550.0,0.31923109]
[1750264337169,21.18189639,104560.0,104550.0,0.38153109]
[1750264342146,21.18189639,104560.0,104550.0,0.42549109]
[1750264344678,21.18189639,104560.0,104550.0,0.38153109]
[1750264344884,21.18189639,104560.0,104550.0,0.58749109]
[1750264347138,21.18189639,104560.0,104550.0,0.58649109]
[1750264347638,21.18189639,104560.0,104550.0,0.58849109]
[1750264347883,21.18189639,104560.0,104550.0,0.58649109]
[1750264348383,21.18189639,104560.0,104550.0,0.58849109]
[1750264348559,21.18189639,104560.0,104550.0,0.65805092]
[1750264348794,21.18189639,104560.0,104550.0,0.66205092]
[1750264349009,21.18189639,104560.0,104550.0,0.66505092]
[1750264349441,21.18189639,104560.0,104550.0,0.65605092]
[1750264349867,21.18189639,104560.0,104550.0,0.66705092]
[1750264350343,21.18189639,104560.0,104550.0,0.50497092]
[1750264350584,21.18189639,104560.0,104550.0,0.66701092]
[1750264357650,21.18189639,104560.0,104550.0,1.10249064]
[1750264358951,21.18189639,104560.0,104550.0,0.73155177]
[1750264359156,21.18189639,104560.0,104550.0,1.0281444]
[1750264360428,21.18189639,104560.0,104550.0,1.0568814]
[1750264364039,21.18189639,104560.0,104550.0,0.48982792]
[1750264364267,21.18189639,104560.0,104550.0,0.55149109]
[1750264365991,21.18189639,104560.0,104550.0,0.38953109]
[1750264366234,21.18189639,104560.0,104550.0,0.48919109]
[1750264366903,21.24589639,104560.0,104550.0,0.48919109]
[1750264367116,21.24589639,104560.0,104550.0,0.32723109]
[1750264367326,21.24589639,104560.0,104550.0,0.48919109]
[1750264370124,21.24589639,104560.0,104550.0,0.32723109]
[1750264370340,21.24589639,104560.0,104550.0,0.48915109]
[1750264370558,21.24589639,104560.0,104550.0,0.32723109]
[1750264370813,21.24589639,104560.0,104550.0,0.48915109]
[1750264371025,21.24589639,104560.0,104550.0,0.47958711]
[1750264371241,21.24589639,104560.0,104550.0,0.48915154]
[1750264371446,21.24589639,104560.0,104550.0,0.49871588]
[1750264371870,21.24589639,104560.0,104550.0,0.49371588]
[1750264372130,21.24589639,104560.0,104550.0,0.47815154]
[1750264372341,21.24589639,104560.0,104550.0,0.25816176]
[1750264372561,21.36117191,104560.0,104550.0,0.004]
[1750264372794,21.37073543,104560.0,104550.0,0.16592]
[1750264373234,21.26502269,104560.0,104550.0,0.16592]
[1750264373442,21.25545945,104560.0,104550.0,0.37634554]
[1750264373654,21.26502278,104560.0,104550.0,0.16392]
[1750264373868,21.24589639,104560.0,104550.0,0.1734848]
[1750264374371,21.27000039,104560.0,104550.0,0.002]
[1750264374601,21.27000048,104560.0,104550.0,0.16192]
[1750264375059,21.27000039,104560.0,104550.0,0.16392]
[1750264375273,21.26043724,104560.0,104550.0,0.36478083]
[1750264375478,21.27000048,104560.0,104550.0,0.16192]
[1750264375688,21.26043724,104560.0,104550.0,0.36278083]
[1750264375934,21.26043724,104560.0,104550.0,0.37234554]
[1750264376144,21.26043724,104560.0,104550.0,0.21042554]
[1750264376352,21.2700003,104560.0,104550.0,0.20086083]
[1750264376565,21.26043724,104560.0,104550.0,0.21042554]
[1750264377203,21.26043724,104560.0,104550.0,0.20086083]
[1750264377860,21.26043724,104560.0,104550.0,0.21042544]
[1750264378268,21.26043724,104560.0,104550.0,0.21042554]
[1750264378523,21.26043724,104560.0,104550.0,0.22955422]
[1750264378936,21.26043724,104560.0,104550.0,0.22955431]
[1750264379342,21.26043724,104560.0,104550.0,0.21998997]
[1750264380266,21.26043724,104560.0,104550.0,0.22955431]
[1750264380477,21.26043724,104560.0,104550.0,0.21998997]
[1750264380672,21.26043724,104560.0,104550.0,0.21042554]
[1750264380875,21.26043724,104560.0,104550.0,0.21999015]
[1750264381090,21.26043724,104560.0,104550.0,0.21042554]
[1750264381291,21.26043724,104560.0,104550.0,0.22955458]
[1750264381666,21.26043724,104560.0,104550.0,0.23911819]
[1750264382262,21.18189639,104560.0,104550.0,0.33535995]
[1750264382458,21.18189639,104560.0,104550.0,0.40005995]
[1750264384366,21.18189639,104560.0,104550.0,0.40205995]
[1750264384987,21.18189639,104560.0,104550.0,0.40005995]
[1750264385195,21.18189639,104560.0,104550.0,0.40505995]
[1750264385406,21.18189639,104560.0,104550.0,0.40305995]
[1750264385616,21.18189639,104560.0,104550.0,0.40705995]
[1750264387954,21.00007179,104560.0,104550.0,0.40705995]
[1750264391261,21.00007179,104560.0,104550.0,0.70365258]
[1750264391486,21.00007179,104560.0,104550.0,0.40705995]
[1750264395312,21.00007179,104560.0,104550.0,0.61265995]
[1750264395522,20.75574673,104560.0,104550.0,0.61265995]
[1750264397072,20.60112418,104560.0,104550.0,0.61265995]
[1750264398415,20.60112418,104560.0,104550.0,0.90925258]
[1750264398682,20.60112418,104560.0,104550.0,0.61265995]
[1750264399136,20.60112418,104560.0,104550.0,1.20685258]
[1750264400016,20.60112418,104560.0,104550.0,1.22602258]
[1750264400222,20.60112418,104560.0,104550.0,1.25685258]
[1750264400638,20.60112418,104560.0,104550.0,0.96025995]
[1750264400844,20.60112418,104560.0,104550.0,1.25685258]
[1750264405346,20.60112418,104560.0,104550.0,1.27139343]
[1750264405789,20.60112418,104560.0,104550.0,1.56798606]
[1750264406003,20.60112418,104560.0,104550.0,1.61798606]
[1750264406210,20.60112418,104560.0,104550.0,1.32139343]
[1750264406903,20.60112418,104560.0,104550.0,1.31739343]
[1750264407128,20.60112418,104560.0,104550.0,1.31439343]
[1750264407358,20.60112418,104560.0,104550.0,1.32039343]
[1750264407589,20.60112418,104560.0,104550.0,1.32539343]
[1750264407842,20.60112418,104560.0,104550.0,0.53938735]
[1750264408080,20.60112418,104560.0,104550.0,1.03541998]
[1750264408343,20.60112418,104560.0,104550.0,1.04341998]
[1750264408603,20.60112418,104560.0,104550.0,0.49138735]
[1750264408859,20.60112418,104560.0,104550.0,0.64682735]
[1750264409115,20.60112418,104560.0,104550.0,0.75405512]
[1750264409367,20.60112418,104560.0,104550.0,1.05064775]
[1750264410474,20.60112418,104560.0,104550.0,0.75405512]
[1750264410650,20.60112418,104560.0,104550.0,1.00064775]
[1750264410888,20.60112418,104560.0,104550.0,1.05064775]
[1750264412526,20.60112418,104560.0,104550.0,0.84520775]
[1750264412755,20.60112418,104560.0,104550.0,1.05064775]
[1750264413879,20.60112418,104560.0,104550.0,1.10064775]
[1750264418249,20.60112418,104560.0,104550.0,1.39824775]
[1750264419107,20.60112418,104560.0,104550.0,1.42698675]
[1750264419726,20.60112418,104560.0,104550.0,1.36975898]
[1750264424529,20.60112418,104560.0,104550.0,1.08669983]
[1750264424733,20.60112418,104560.0,104550.0,1.4596196]
[1750264426099,20.60112418,104560.0,104550.0,1.4546196]
[1750264426310,20.60112418,104560.0,104550.0,1.16502697]
[1750264426513,20.60112418,104560.0,104550.0,1.15702697]
[1750264427073,20.60112418,104560.0,104550.0,1.4636196]
[1750264429217,20.60112418,104560.0,104550.0,1.11686697]
[1750264429398,20.60112418,104560.0,104550.0,1.16686697]
[1750264429984,20.60112418,104560.0,104550.0,1.46446697]
[1750264432880,20.60112418,104560.0,104550.0,1.25918697]
[1750264433091,20.60112418,104560.0,104550.0,1.46446697]
[1750264435187,20.60112418,104560.0,104550.0,1.48363697]
[1750264435387,20.60112418,104560.0,104550.0,1.46446697]
[1750264435589,20.60112418,104560.0,104550.0,1.69422697]
[1750264436562,20.60112418,104560.0,104550.0,1.9908196]
[1750264436996,20.60112418,104560.0,104550.0,1.69422697]
[1750264442985,20.60112418,104560.0,104550.0,0.78335349]
[1750264443191,20.60112418,104560.0,104550.0,0.58621895]
[1750264443308,20.66672418,104560.0,104550.0,0.58621895]
[1750264444596,20.66672418,104560.0,104550.0,0.38109895]
[1750264444799,20.66672418,104560.0,104550.0,0.58617895]
[1750264445467,20.66672418,104560.0,104550.0,0.38109895]
[1750264445668,20.66672418,104560.0,104550.0,0.58617895]
[1750264446410,20.60112418,104560.0,104550.0,0.58617895]
[1750264447554,20.60112418,104560.0,104550.0,0.38109895]
[1750264447791,20.60112418,104560.0,104550.0,0.58617895]
[1750264448868,20.60112418,104560.0,104550.0,0.94567158]
[1750264449092,20.60112418,104560.0,104550.0,0.64907895]
[1750264449305,20.60112418,104560.0,104550.0,0.94567158]
[1750264449510,20.60112418,104560.0,104550.0,0.97434176]
[1750264449719,20.60112418,104560.0,104550.0,0.98888261]
[1750264449925,20.60112418,104560.0,104550.0,1.03888261]
[1750264450365,20.60112418,104560.0,104550.0,1.38547524]
[1750264450788,20.60112418,104560.0,104550.0,1.46180238]
[1750264453562,20.60112418,104560.0,104550.0,1.38547524]
[1750264453771,20.49090479,104560.0,104550.0,1.56279666]
[1750264454222,20.49090479,104560.0,104550.0,1.46189666]
[1750264454891,20.43418446,104560.0,104550.0,1.46189666]
[1750264455310,20.37602817,104560.0,104550.0,1.46189666]
[1750264456584,20.37602817,104560.0,104550.0,1.45489666]
[1750264456795,20.37602817,104560.0,104550.0,1.44489666]
[1750264457023,20.37602817,104560.0,104550.0,1.45289666]
[1750264457231,20.37602817,104560.0,104550.0,1.46489666]
[1750264459653,20.16491254,104560.0,104550.0,1.46489666]
[1750264459890,20.10817444,104560.0,104550.0,1.46489666]
[1750264460576,20.10817444,104560.0,104550.0,1.38847524]
[1750264461095,20.01505367,104560.0,104550.0,1.83607524]
[1750264461333,19.61043554,104560.0,104550.0,2.23408929]
[1750264461578,19.55313477,104560.0,104550.0,1.93749666]
[1750264462010,19.55224477,104560.0,104550.0,1.93749666]
[1750264462290,19.55224477,104560.0,104550.0,1.86107524]
[1750264462531,19.42753477,104560.0,104550.0,1.93721586]
[1750264462989,19.42753477,104560.0,104550.0,1.86221586]
[1750264464159,19.42753477,104560.0,104550.0,1.96311586]
[1750264464398,19.25490566,104560.0,104550.0,1.96311586]
[1750264464855,19.25490566,104560.0,104550.0,2.03811586]
[1750264465066,19.25490566,104560.0,104550.0,2.05728586]
[1750264465282,19.18588139,104560.0,104550.0,2.05728586]
[1750264465709,19.18588139,104560.0,104550.0,1.1841406]
[1750264465911,19.18588139,104560.0,104550.0,1.98212586]
[1750264466124,19.18588139,104560.0,104550.0,2.05712586]
[1750264466331,19.18588139,104560.0,104550.0,2.03712586]
[1750264466541,19.18588139,104560.0,104550.0,2.05212586]
[1750264466742,19.17012139,104560.0,104550.0,2.05212586]
[1750264466989,19.14254139,104560.0,104550.0,2.05212586]
[1750264467212,19.12766139,104560.0,104550.0,2.05212586]
[1750264467363,19.04490139,104560.0,104550.0,2.05212586]
[1750264468094,18.89802637,104560.0,104550.0,2.34871849]
[1750264468274,18.76641637,104560.0,104550.0,2.06212586]
[1750264468510,18.72776934,104560.0,104550.0,2.06212586]
[1750264468714,18.69899934,104560.0,104550.0,2.05212586]
[1750264468915,18.69899934,104560.0,104550.0,2.03712586]
[1750264468916,18.69167934,104560.0,104550.0,2.03712586]
[1750264469120,18.64383246,104560.0,104550.0,2.04512586]
[1750264469330,18.59598558,104560.0,104550.0,2.04512586]
[1750264469546,18.52861543,104560.0,104550.0,2.04512586]
[1750264469976,18.42213343,104560.0,104550.0,2.04512586]
[1750264470123,18.34520672,104560.0,104550.0,2.51545787]
[1750264470328,18.29736472,104560.0,104550.0,2.59166552]
[1750264470527,18.29736472,104560.0,104550.0,2.51545787]
[1750264470528,18.29401287,104560.0,104550.0,2.51545787]
[1750264470823,18.19380194,104560.0,104550.0,2.51545787]
[1750264471018,18.07325994,104560.0,104550.0,2.51545787]
[1750264471431,18.07325994,104560.0,104550.0,2.78086071]
[1750264471432,17.30655831,104560.0,104550.0,2.78086071]
[1750264472008,16.85852473,104560.0,104550.0,2.78086071]
[1750264472147,16.55055738,104560.0,104550.0,2.78086071]
[1750264472360,16.54098898,104560.0,104550.0,2.78086071]
[1750264472793,16.53142058,104560.0,104550.0,2.78086071]
[1750264473164,16.52185218,104560.0,104550.0,2.78086071]
[1750264473616,16.51228378,104560.0,104550.0,2.59166071]
[1750264473824,16.48790485,104560.0,104550.0,2.51545787]
[1750264474028,16.46705433,104560.0,104550.0,2.51545787]
[1750264474434,16.04633478,104560.0,104550.0,2.51545787]
[1750264474639,15.99677125,104560.0,104550.0,2.51545787]
[1750264474855,15.53890736,104560.0,104550.0,2.51245787]
[1750264475058,14.80477153,104560.0,104550.0,3.56182348]
[1750264475261,14.30790706,104560.0,104550.0,3.56182348]
[1750264475474,12.34601881,104560.0,104550.0,3.46121987]
[1750264475678,11.92026495,104560.0,104550.0,3.46121987]
[1750264475881,11.88600635,104560.0,104550.0,3.46121987]
[1750264476087,11.87643883,104560.0,104550.0,3.46121987]
[1750264476277,11.82878746,104560.0,104550.0,3.46121987]
[1750264476495,11.81921994,104560.0,104550.0,1.77080498]
[1750264476625,11.81921994,104560.0,104550.0,2.66058287]
[1750264476826,11.80486334,104560.0,104550.0,2.66058287]
[1750264477034,11.79529582,104560.0,104550.0,2.66058287]
[1750264477259,11.7770973,104560.0,104550.0,2.66058287]
[1750264477430,11.30848779,104560.0,104550.0,3.14738287]
[1750264477708,11.30848779,104560.0,104550.0,3.26678287]
[1750264477888,11.23143511,104560.0,104550.0,3.26678287]
[1750264478089,10.82335297,104560.0,104550.0,3.36199244]
[1750264478243,10.56272133,104560.0,104550.0,3.36199244]
[1750264478456,10.5148305,104560.0,104550.0,3.36199244]
[1750264478675,10.50526298,104560.0,104550.0,3.36199244]
[1750264478873,10.49611531,104560.0,104550.0,3.36199244]
[1750264479074,10.48654779,104560.0,104550.0,3.36199244]
[1750264479282,10.43889641,104560.0,104550.0,3.36199244]
[1750264479487,10.42932889,104560.0,104550.0,3.36199244]
[1750264479709,10.38143806,104560.0,104550.0,3.26678287]
[1750264479922,10.37187054,104560.0,104550.0,3.26678287]
[1750264480124,10.32421916,104560.0,104550.0,3.26678287]
[1750264480325,10.31465164,104560.0,104550.0,3.26678287]
[1750264480545,9.85560965,104560.0,104550.0,3.36204243]
[1750264480774,9.84280021,104560.0,104550.0,3.0654498]
[1750264481187,9.83323379,104560.0,104550.0,3.0654498]
[1750264481403,9.79216806,104560.0,104550.0,3.0654498]
[1750264481614,9.68693742,104560.0,104550.0,2.8291298]
[1750264481833,9.63910531,104560.0,104550.0,2.4825248]
[1750264482060,9.63910531,104560.0,104550.0,2.6872048]
[1750264482336,9.63910531,104560.0,104550.0,2.29194524]
[1750264482541,9.63910531,104560.0,104550.0,2.66694524]
[1750264482752,9.62915532,104560.0,104550.0,2.66694524]
[1750264482977,9.62915532,104560.0,104550.0,2.59194524]
[1750264483172,9.62915532,104560.0,104550.0,2.66694524]
[1750264483375,9.33155532,104560.0,104550.0,2.16466524]
[1750264483590,9.33155532,104560.0,104550.0,2.36934524]
[1750264484162,9.33155532,104560.0,104550.0,2.16466524]
[1750264484487,9.33155532,104560.0,104550.0,2.36930524]
[1750264484711,9.33155532,104560.0,104550.0,1.79307261]
[1750264484943,9.33155532,104560.0,104550.0,2.07271261]
[1750264485143,9.33155532,104560.0,104550.0,1.79307261]
[1750264485298,9.33155532,104560.0,104550.0,1.99771261]
[1750264485505,9.33155532,104560.0,104550.0,1.23193913]
[1750264485712,9.33155532,104560.0,104550.0,1.53785841]
[1750264485910,9.33155532,104560.0,104550.0,1.75703926]
[1750264487309,9.33155532,104560.0,104550.0,1.59587926]
[1750264487512,9.33155532,104560.0,104550.0,1.75703926]
[1750264487967,9.33155532,104560.0,104550.0,1.59587926]
[1750264488170,9.33155532,104560.0,104550.0,1.75703926]
[1750264489240,9.33155532,104560.0,104550.0,1.56783926]
[1750264490919,9.33155532,104560.0,104550.0,1.56786588]
[1750264491537,9.33155532,104560.0,104550.0,1.49155998]
[1750264491955,9.33155532,104560.0,104550.0,1.86315261]
[1750264492622,9.33155532,104560.0,104550.0,1.62699261]
[1750264492832,9.33155532,104560.0,104550.0,1.78815261]
[1750264493254,9.33155532,104560.0,104550.0,1.17311998]
[1750264493475,9.39485532,104560.0,104550.0,1.42297954]
[1750264493685,9.33155532,104560.0,104550.0,1.42297954]
[1750264494308,9.39485532,104560.0,104550.0,1.42297954]
[1750264494800,9.39485532,104560.0,104550.0,1.42597954]
[1750264495014,9.39485532,104560.0,104550.0,1.48297954]
[1750264495272,9.39485532,104560.0,104550.0,1.43297954]
[1750264495448,9.33155532,104560.0,104550.0,1.43297954]
[1750264495688,9.33155532,104560.0,104550.0,1.48297954]
[1750264496546,9.33155532,104560.0,104550.0,1.31357954]
[1750264497172,9.33155532,104560.0,104550.0,1.36357954]
[1750264497389,9.36305532,104560.0,104550.0,1.26357954]
[1750264497633,9.36305532,104560.0,104550.0,1.20245954]
[1750264497859,9.36305532,104560.0,104550.0,1.36357954]
[1750264498067,9.39575532,104560.0,104550.0,1.31357954]
[1750264498275,9.39575532,104560.0,104550.0,1.18328954]
[1750264498481,9.39575532,104560.0,104550.0,1.24914998]
[1750264499327,9.33155532,104560.0,104550.0,1.80510217]
[1750264499983,9.33155532,104560.0,104550.0,1.72335217]
[1750264500459,9.33155532,104560.0,104550.0,1.36355954]
[1750264500931,9.33155532,104560.0,104550.0,1.39495954]
[1750264501153,9.33155532,104560.0,104550.0,1.82535217]
[1750264505329,9.33155532,104560.0,104550.0,1.16681954]
[1750264505532,9.33155532,104560.0,104550.0,1.06591954]
[1750264505533,9.39295532,104560.0,104550.0,1.06591954]
[1750264505732,9.39295532,104560.0,104550.0,1.01591954]
[1750264506144,9.39295532,104560.0,104550.0,0.92065998]
[1750264506383,9.39295532,104560.0,104550.0,0.97065998]
[1750264506521,9.39295532,104560.0,104550.0,1.06591954]
[1750264506736,9.39295532,104560.0,104550.0,0.97065998]
[1750264507190,9.39295532,104560.0,104550.0,1.01591954]